fUSD/lending_fUSD_20240222
["ID","MTS","AMOUNT","RATE_DAILY","PERIOD"]
[314874840,1708605063443,-500.0,0.00033698,4]
[314874841,1708605063452,-1142.53,0.00033698,4]
[314874842,1708605063462,-500.0,0.00033698,4]
[314874843,1708605063471,-750.51,0.00033698,4]
[314874844,1708605063481,-626.74,0.00033698,4]
[314874845,1708605063490,-500.0,0.00033698,4]
[314874846,1708605063500,-500.0,0.00033698,4]
[314874847,1708605063510,-562.71,0.00033698,4]
[314874848,1708605063519,-501.72,0.00033698,4]
[314874849,1708605063529,-500.0,0.00033698,4]
[314874850,1708605063539,-537.63,0.00033698,4]
[314874851,1708605063549,-968.27,0.00033698,4]
[314874852,1708605063559,-845.75,0.00033698,4]
[314874853,1708605063569,-500.0,0.00033698,4]
[314874854,1708605063579,-500.0,0.00033698,4]
[314874855,1708605063588,-1044.05,0.00033698,4]
[314874856,1708605063598,-1163.04,0.00033698,2]
[314874857,1708605063607,-500.0,0.00033698,4]
[314874858,1708605063617,-675.53,0.00033698,4]
[314874859,1708605063626,-710.45,0.00033698,4]
[314874860,1708605063636,-500.0,0.00033698,4]
[314874861,1708605063646,-623.71,0.00033698,4]
[314874862,1708605063658,-781.75,0.00033698,4]
[314874863,1708605063668,-500.0,0.00033698,4]
[314874864,1708605063677,-768.77,0.00033698,4]
[314874865,1708605063687,-501.22,0.00033698,4]
[314874866,1708605063697,-500.0,0.00033698,4]
[314874867,1708605063707,-963.0,0.00033698,4]
[314874868,1708605063716,-500.0,0.00033698,4]
[314874869,1708605063725,-844.1,0.00033698,4]
[314874870,1708605063737,-998.62,0.00033698,4]
[314874871,1708605063747,-867.92,0.00033698,4]
[314874872,1708605063757,-500.0,0.00033698,4]
[314874873,1708605063766,-500.0,0.00033698,4]
[314874874,1708605063776,-500.0,0.00033698,4]
[314874875,1708605063786,-500.0,0.00033698,4]
[314874876,1708605063796,-526.46,0.00033698,4]
[314874877,1708605063805,-500.0,0.00033698,4]
[314874878,1708605063815,-796.69,0.00033698,4]
[314874879,1708605063826,-793.57,0.00033698,4]
[314874880,1708605063836,-500.0,0.00033698,4]
[314874881,1708605063846,-935.73,0.00033698,4]
[314874882,1708605063856,-500.0,0.00033698,4]
[314874883,1708605063866,-608.56,0.00033698,4]
[314874884,1708605063876,-697.13,0.00033698,4]
[314874885,1708605063885,-500.0,0.00033698,4]
[314874886,1708605063894,-500.0,0.00033698,4]
[314874887,1708605063904,-1241.26,0.00033698,4]
[314874888,1708605063913,-500.0,0.00033698,4]
[314874889,1708605063922,-500.0,0.00033698,4]
[314874890,1708605063931,-571.37,0.00033698,4]
[314874891,1708605063940,-500.0,0.00033698,4]
[314874892,1708605063949,-500.0,0.00033698,4]
[314874893,1708605063958,-500.0,0.00033698,4]
[314874894,1708605063967,-1389.73,0.00033698,4]
[314874895,1708605063975,-500.0,0.00033698,4]
[314874896,1708605063984,-500.0,0.00033698,4]
[314874897,1708605063995,-563.89,0.00033698,4]
[314874898,1708605064004,-500.0,0.00033698,4]
[314874899,1708605064014,-500.0,0.00033698,4]
[314874900,1708605064023,-895.11,0.00033698,4]
[314874901,1708605064033,-525.23,0.00033698,4]
[314874902,1708605064042,-500.0,0.00033698,4]
[314874903,1708605064051,-500.0,0.00033698,4]
[314874904,1708605064061,-671.26,0.00033698,4]
[314874905,1708605064071,-500.0,0.00033698,4]
[314874906,1708605064081,-500.0,0.00033698,4]
[314874907,1708605064090,-503.64,0.00033698,4]
[314874908,1708605064099,-564.9,0.00033698,4]
[314874909,1708605064109,-500.0,0.00033698,4]
[314874910,1708605064118,-500.0,0.00033698,4]
[314874911,1708605064128,-687.12,0.00033698,4]
[314874912,1708605064137,-500.0,0.00033698,4]
[314874913,1708605064147,-639.73,0.00033698,4]
[314874914,1708605064156,-500.0,0.00033698,4]
[314874915,1708605064166,-500.0,0.00033698,4]
[314874916,1708605064176,-500.0,0.00033698,4]
[314874917,1708605064185,-872.7,0.00033698,4]
[314874918,1708605064194,-2597.64,0.00033698,4]
[314874919,1708605064203,-589.84,0.00033698,4]
[314874920,1708605064213,-500.0,0.00033698,4]
[314874921,1708605064222,-4071.1,0.00033698,4]
[314874922,1708605064232,-568.68,0.00033698,4]
[314874923,1708605064241,-540.9,0.00033698,4]
[314874924,1708605064250,-206.87,0.00033698,4]
[314874925,1708605064259,-500.0,0.00033698,4]
[314874926,1708605064269,-559.69,0.00033698,4]
[314874927,1708605064278,-4040.2,0.00033698,4]
[314874928,1708605064287,-500.0,0.00033698,4]
[314874929,1708605064297,-638.08,0.00033698,4]
[314874930,1708605064306,-2906.13,0.00033698,4]
[314874931,1708605064315,-696.29,0.00033698,4]
[314874932,1708605064325,-500.0,0.00033698,4]
[314874933,1708605064335,-1430.27,0.00033698,4]
[314874934,1708605064344,-1085.47,0.00033698,4]
[314874935,1708605064353,-768.99,0.00033698,4]
[314874936,1708605064363,-500.0,0.00033698,4]
[314874937,1708605064372,-567.42162171,0.00033698,4]
[314874938,1708605064381,-500.0,0.00033698,4]
[314874939,1708605064390,-5041.44,0.00033698,4]
[314874940,1708605064399,-500.0,0.00033698,4]
[314874941,1708605064414,-500.0,0.00033698,4]
[314874942,1708605064430,-500.0,0.00033698,4]
[314874943,1708605064441,-895.54,0.00033698,4]
[314874944,1708605064450,-279.58234367,0.00033698,4]
[314874945,1708605064460,-606.35,0.00033698,4]
[314874946,1708605064472,-1142.99,0.00033698,4]
[314874947,1708605064482,-936.79,0.00033698,4]
[314874948,1708605064492,-500.0,0.00033698,4]
[314874949,1708605064502,-710.83269852,0.00033698,4]
[314874950,1708605065221,-1205.27519316,0.00033698,4]
[314874951,1708605065241,-1240.58210832,0.00033698,4]
[314874952,1708605065251,-924.73,0.00033698,4]
[314874953,1708605065260,-500.0,0.00033698,4]
[314874954,1708605065270,-500.0,0.00033698,4]
[314874955,1708605065281,-500.0,0.00033698,4]
[314874956,1708605065290,-500.0,0.00033698,4]
[314874957,1708605065299,-500.0,0.00033698,4]
[314874958,1708605065308,-2485.39,0.00033698,4]
[314874959,1708605065318,-749.02,0.00033698,4]
[314874960,1708605065327,-500.0,0.00033698,4]
[314874961,1708605065337,-2440.22,0.00033698,4]
[314874962,1708605065346,-500.0,0.00033698,4]
[314874963,1708605065356,-237.18152217,0.00033698,4]
[314874964,1708605065392,-333.42,0.00033424,4]
[314874965,1708605065405,-166.58,0.00033424,4]
[314874966,1708605065414,-1546.67867,0.00033698,4]
[314874967,1708605065434,-873.56,0.0003315,4]
[314874968,1708605065444,-2017.61880614,0.00033698,4]
[314874969,1708605065460,-443.83778674,0.00033698,4]
[314874970,1708605065473,-3666.75055013,0.00033698,4]
[314874971,1708605065485,-627.18266482,0.00033698,4]
[314874972,1708605065495,-1008.09029264,0.00033698,4]
[314874973,1708605065523,-438.86970736,0.00033698,4]
[314874974,1708605065534,-500.0,0.00033698,4]
[314874975,1708605065544,-509.85,0.00033698,4]
[314874976,1708605065554,-961.76,0.00033698,4]
[314874977,1708605065563,-500.99,0.00033698,4]
[314874978,1708605065573,-500.0,0.00033698,4]
[314874979,1708605065582,-3953.53,0.00033698,4]
[314874980,1708605065591,-3774.61,0.00033698,4]
[314874981,1708605065601,-515.22455968,0.00033698,4]
[314874982,1708605065610,-1445.24815074,0.00033698,4]
[314874983,1708605065622,-663.20184926,0.00033698,4]
[314874984,1708605065632,-1172.54,0.00033698,4]
[314874985,1708605065642,-1110.03,0.00033698,4]
[314874986,1708605065652,-500.0,0.00033698,4]
[314874987,1708605065662,-542.13,0.00033698,4]
[314874988,1708605065671,-721.25,0.00033698,4]
[314874989,1708605065681,-340.26886035,0.00033698,4]
[314874990,1708605065695,-159.73113965,0.00033698,4]
[314874991,1708605065704,-426.67737762,0.00033698,4]
[314874992,1708605066309,-337.47807993,0.00033424,2]
[314874993,1708605066319,-156.51002192,0.00033424,4]
[314874994,1708605066331,-484.29600592,0.00033424,4]
[314874995,1708605066588,-500.0,0.00032876,2]
[314874996,1708605066599,-232.75397216,0.00033424,4]
[314874997,1708605066609,-1305.35410776,0.00033698,4]
[314874998,1708605066630,-643.65,0.0003315,4]
[314874999,1708605066641,-509.61851462,0.00033698,4]
[314875000,1708605066652,-4582.12701618,0.00033698,4]
[314875001,1708605066665,-1394.49725714,0.00033698,4]
[314875002,1708605066677,-324.83345453,0.00033698,4]
[314875003,1708605066851,-2585.15,0.00033698,4]
[314875004,1708605067229,-1328.41350769,0.00033698,4]
[314875005,1708605067242,-2999.75130119,0.00033698,4]
[314875006,1708605067257,-629.8890067,0.00033698,4]
[314875007,1708605067269,-5004.19770238,0.00033698,4]
[314875008,1708605067287,-670.16679894,0.00033698,4]
[314875009,1708605067299,-12246.65856979,0.00033698,4]
[314875010,1708605067311,-5449.18538546,0.00033698,4]
[314875011,1708605067322,-1002.58,0.00033698,4]
[314875012,1708605067332,-266.58461454,0.00033698,4]
[314875013,1708605067344,-233.41538546,0.00033698,4]
[314875014,1708605067355,-2325.63,0.00033698,4]
[314875015,1708605067364,-3906.49358866,0.00033698,4]
[314875016,1708605067381,-350.60641134,0.00033698,4]
[314875017,1708605067391,-829.37,0.00033698,4]
[314875018,1708605067401,-6611.26723898,0.00033698,4]
[314875019,1708605068110,-1693.78220907,0.0003269,2]
[314875020,1708605068484,-2000.0,0.0003269,2]
[314875021,1708605075148,628.30350937,0.00025,3]
[314875022,1708605075170,121.69649063,0.00025,3]
[314875023,1708605076083,800.0,0.00027,3]
[314875024,1708605296967,124.304196,0.00025446,2]
[314875025,1708605296992,45.935804,0.00025446,2]
[314875037,1708606231925,-777.94521477,0.00028326,2]
[314875038,1708606231990,-1165.06708128,0.00028326,2]
[314875058,1708606232386,-393.03574156,0.00028326,2]
[314875060,1708606232396,-44.36511677,0.00028327,2]
[314875062,1708606232408,-879.76098058,0.00028327,2]
[314875064,1708606232420,-559.71247832,0.00028327,2]
[314875067,1708606232431,-372.42475445,0.00028327,2]
[314875071,1708606232465,-1132.12926988,0.00028327,2]
[314875073,1708606232474,-231.73394899,0.00028427,2]
[314875075,1708606232483,-711.97,0.00028428,2]
[314875077,1708606232493,-156.26248963,0.00028664,2]
[314875079,1708606232502,-209.0,0.00028764,2]
[314875081,1708606232511,-11997.5886,0.00028899,2]
[314875083,1708606232521,-158.97896514,0.00028999,2]
[314875085,1708606232531,-850.0,0.00029,3]
[314875087,1708606232540,-156.26248959,0.00029251,2]
[314875090,1708606232550,-156.26248959,0.00029839,2]
[314875091,1708606232559,-222.96,0.00030116,2]
[314875094,1708606232568,-173.33,0.00030159,2]
[314875096,1708606232579,-538.08,0.00030165,2]
[314875098,1708606232588,-200.0,0.00030178,2]
[314875100,1708606232598,-689.62,0.00030185,2]
[314875102,1708606232607,-156.37,0.00030193,2]
[314875104,1708606232616,-500.0,0.00030265,2]
[314875106,1708606232626,-169.71,0.00030288,2]
[314875108,1708606232636,-183.04,0.00030297,10]
[314875110,1708606232645,-1090.22,0.00030317,2]
[314875112,1708606232655,-250.0,0.00030346,2]
[314875114,1708606232665,-800.0,0.00030374,2]
[314875116,1708606232675,-156.26248959,0.00030426,2]
[314875118,1708606232685,-2000.0,0.00030432,2]
[314875120,1708606232694,-250.0,0.00030432,2]
[314875122,1708606232707,-23900.0,0.00030478,2]
[314875124,1708606232716,-392.84,0.00030561,2]
[314875126,1708606232726,-400.0,0.00030568,2]
[314875128,1708606232736,-156.37,0.00030571,2]
[314875130,1708606232745,-173.73,0.00030595,2]
[314875132,1708606232755,-158.21,0.00030608,2]
[314875134,1708606232764,-711.97,0.00030692,2]
[314875136,1708606232773,-152.7,0.00030736,2]
[314875138,1708606232782,-154.5048235,0.000309,20]
[314875140,1708606232792,-3260.11504741,0.00030938,2]
[314875142,1708606232801,-156.37,0.00030948,2]
[314875144,1708606232810,-464.19,0.00030952,2]
[314875146,1708606232821,-353.49,0.00030952,2]
[314875148,1708606232830,-900.0,0.00031,3]
[314875150,1708606232840,-464.19,0.00031115,2]
[314875152,1708606232850,-166.02,0.00031173,2]
[314875154,1708606232860,-464.19,0.00031278,2]
[314875156,1708606232869,-183.04,0.00031287,10]
[314875158,1708606232878,-156.37,0.00031326,2]
[314875160,1708606232887,-464.19,0.0003144,2]
[314875162,1708606232896,-1864.01162733,0.00031491,4]
[314875164,1708606232906,-200.0,0.0003151,2]
[314875167,1708606232915,-166.8,0.00031599,2]
[314875169,1708606232925,-464.19,0.00031603,2]
[314875171,1708606232935,-64005.2281,0.000317,2]
[314875173,1708606232945,-253.1296,0.000317,2]
[314875175,1708606232955,-598.2396,0.000317,2]
[314875177,1708606232964,-2792.0361,0.000317,2]
[314875179,1708606232974,-156.37,0.00031703,2]
[314875181,1708606232987,-499.99,0.00031742,2]
[314875183,1708606232996,-464.19,0.00031766,2]
[314875185,1708606233005,-1658.4,0.00031793,2]
[314875187,1708606233014,-11832.5038,0.00031798,2]
[314875189,1708606233025,-1879.7351,0.00031798,2]
[314875191,1708606233036,-2455.0303,0.00031798,2]
[314875193,1708606233046,-418.429,0.00031798,2]
[314875195,1708606233056,-13382.109,0.000318,7]
[314875197,1708606233066,-655.37026753,0.000318,5]
[314875199,1708606233077,-8798.41,0.000318,30]
[314875201,1708606233086,-689.62,0.00031828,2]
[314875203,1708606233096,-492.0,0.00031865,3]
[314875205,1708606233105,-1510.17813183,0.0003189,2]
[314875207,1708606233116,-1510.17813183,0.0003189,2]
[314875209,1708606233125,-14316.9705787,0.0003189,2]
[314875211,1708606233134,-220.43964874,0.0003189,2]
[314875213,1708606233144,-800.0,0.0003189,2]
[314875215,1708606233154,-14620.41259386,0.00031898,2]
[314875218,1708606233167,-27847.0306,0.00031898,2]
[314875220,1708606233179,-102072.0290397,0.00031898,2]
[314875222,1708606233189,-1000.0,0.00031899,2]
[314875224,1708606233198,-1000.0,0.00031899,2]
[314875226,1708606233208,-245097.96124479,0.000319,2]
[314875228,1708606233219,-869.03554055,0.000319,2]
[314875341,1708606237833,-156.26248959,0.00031014,2]
[314875342,1708606237843,-843.74414041,0.000319,2]
[314875343,1708606237855,-4089.11401471,0.000319,2]
[314875344,1708606237887,-1069.5,0.000319,2]
[314875345,1708606237908,-16581.76030544,0.000319,2]
[314875346,1708606237919,-36776.05264446,0.000319,2]
[314875347,1708606238020,-51355.69025876,0.000319,2]
[314875348,1708606238033,-306.979227,0.000319,2]
[314875349,1708606238044,-2510.62921528,0.000319,2]
[314875350,1708606238056,-998.58866219,0.000319,2]
[314875351,1708606238068,-626.53937452,0.000319,2]
[314875352,1708606238086,-526.62122345,0.000319,2]
[314875353,1708606238101,-464.205,0.000319,2]
[314875354,1708606238112,-342.82992223,0.000319,2]
[314875355,1708606238136,-11045.47383949,0.000319,2]
[314875356,1708606238152,-2815.65835892,0.000319,2]
[314875357,1708606238163,-428.32625124,0.000319,2]
[314875358,1708606238179,-540.28137707,0.000319,2]
[314875360,1708606240573,-156.26248959,0.00031601,2]
[314875361,1708606240586,-698.18003249,0.000319,2]
[314875362,1708606240599,-590.29,0.000319,2]
[314875363,1708606240613,-250.5,0.000319,2]
[314875364,1708606240632,-906.25999723,0.000319,2]
[314875365,1708606240645,-14383.86682473,0.000319,2]
[314875366,1708606240658,-17727.93432235,0.000319,2]
[314875367,1708606240671,-1145.10809719,0.000319,2]
[314875368,1708606240685,-1126.61318167,0.000319,2]
[314875369,1708606240698,-365.49689089,0.000319,2]
[314875370,1708606240718,-1045.9,0.000319,2]
[314875371,1708606240774,-468.67992952,0.000319,2]
[314875372,1708606240788,-1153.91591184,0.000319,2]
[314875377,1708606242851,-1376.50921002,0.000319,2]
[314875380,1708606244385,-255.0625,0.000319,2]
[314875386,1708606244843,-4720.6272777,0.000319,2]
[314875387,1708606244855,-1355.29141307,0.000319,2]
[314875388,1708606244867,-702.03474078,0.000319,2]
[314875389,1708606245017,-15661.15651718,0.000319,2]
[314875390,1708606245031,-467336.51192469,0.000319,2]
[314875391,1708606245040,-211.00581045,0.000319,2]
[314875392,1708606245064,-464.19,0.00031929,2]
[314875393,1708606245073,-406.19605182,0.00032,2]
[314875394,1708606245083,-406.19605182,0.00032,2]
[314875395,1708606245093,-406.19605182,0.00032,2]
[314875396,1708606245102,-406.19605182,0.00032,2]
[314875397,1708606245112,-406.19605182,0.00032,2]
[314875398,1708606245121,-406.19605182,0.00032,2]
[314875399,1708606245131,-406.19605182,0.00032,2]
[314875400,1708606245140,-406.19605182,0.00032,2]
[314875401,1708606245149,-406.19605182,0.00032,2]
[314875402,1708606245159,-406.19605182,0.00032,2]
[314875403,1708606245168,-406.19605182,0.00032,2]
[314875404,1708606245178,-406.19605182,0.00032,2]
[314875405,1708606245187,-406.19605182,0.00032,2]
[314875406,1708606245196,-406.19605182,0.00032,2]
[314875407,1708606245206,-406.19605182,0.00032,2]
[314875408,1708606245215,-406.19605182,0.00032,2]
[314875409,1708606245225,-406.19605182,0.00032,2]
[314875410,1708606245234,-406.19605182,0.00032,2]
[314875411,1708606245243,-406.19605182,0.00032,2]
[314875412,1708606245253,-406.19605182,0.00032,2]
[314875413,1708606245262,-406.19605182,0.00032,2]
[314875414,1708606245272,-406.19605182,0.00032,2]
[314875415,1708606245281,-406.19605182,0.00032,2]
[314875416,1708606245290,-406.19605182,0.00032,2]
[314875417,1708606245300,-406.19605182,0.00032,2]
[314875418,1708606245309,-406.19605182,0.00032,2]
[314875419,1708606245318,-406.19605182,0.00032,2]
[314875420,1708606245328,-406.19605182,0.00032,2]
[314875421,1708606245339,-406.19605182,0.00032,2]
[314875422,1708606245349,-406.19605182,0.00032,2]
[314875423,1708606245359,-406.19605182,0.00032,2]
[314875424,1708606245369,-406.19605182,0.00032,2]
[314875425,1708606245378,-406.19605182,0.00032,2]
[314875426,1708606245388,-406.19605182,0.00032,2]
[314875427,1708606245397,-406.19605182,0.00032,2]
[314875428,1708606245407,-406.19605182,0.00032,2]
[314875429,1708606245417,-406.19605182,0.00032,2]
[314875430,1708606245426,-406.19605182,0.00032,2]
[314875431,1708606245435,-406.19605182,0.00032,2]
[314875432,1708606245445,-406.19605182,0.00032,2]
[314875433,1708606245454,-406.19605182,0.00032,2]
[314875434,1708606245465,-406.19605182,0.00032,2]
[314875435,1708606245474,-406.19605182,0.00032,2]
[314875436,1708606245489,-406.19605182,0.00032,2]
[314875437,1708606245499,-406.19605182,0.00032,2]
[314875438,1708606245509,-406.19605182,0.00032,2]
[314875439,1708606245518,-406.19605182,0.00032,2]
[314875440,1708606245528,-406.19605182,0.00032,2]
[314875441,1708606245538,-406.19605182,0.00032,2]
[314875442,1708606245547,-406.19605182,0.00032,2]
[314875443,1708606245557,-406.19605182,0.00032,2]
[314875444,1708606245567,-406.19605182,0.00032,2]
[314875445,1708606245576,-406.19605182,0.00032,2]
[314875446,1708606245587,-406.19605182,0.00032,2]
[314875447,1708606245597,-406.19605182,0.00032,2]
[314875448,1708606245606,-406.19605182,0.00032,2]
[314875449,1708606245616,-406.19605182,0.00032,2]
[314875450,1708606245626,-406.19605182,0.00032,2]
[314875451,1708606245636,-406.19605182,0.00032,2]
[314875452,1708606245646,-406.19605182,0.00032,2]
[314875453,1708606245656,-406.19605182,0.00032,2]
[314875454,1708606245665,-406.19605182,0.00032,2]
[314875455,1708606245675,-406.19605182,0.00032,2]
[314875456,1708606245685,-406.19605182,0.00032,2]
[314875458,1708606245695,-406.19605182,0.00032,2]
[314875459,1708606245705,-406.19605182,0.00032,2]
[314875460,1708606245714,-406.19605182,0.00032,2]
[314875461,1708606245725,-406.19605182,0.00032,2]
[314875462,1708606245734,-406.19605182,0.00032,2]
[314875463,1708606245745,-406.19605182,0.00032,2]
[314875464,1708606245755,-406.19605182,0.00032,2]
[314875465,1708606245765,-406.19605182,0.00032,2]
[314875466,1708606245775,-406.19605182,0.00032,2]
[314875467,1708606245785,-406.19605182,0.00032,2]
[314875468,1708606245795,-406.19605182,0.00032,2]
[314875469,1708606245805,-406.19605182,0.00032,2]
[314875470,1708606245815,-406.19605182,0.00032,2]
[314875471,1708606245825,-406.19605182,0.00032,2]
[314875472,1708606245837,-406.19605182,0.00032,2]
[314875473,1708606245847,-406.19605182,0.00032,2]
[314875474,1708606245857,-406.19605182,0.00032,2]
[314875475,1708606245867,-406.19605182,0.00032,2]
[314875476,1708606245877,-406.19605182,0.00032,2]
[314875477,1708606245887,-406.19605182,0.00032,2]
[314875478,1708606245898,-406.19605182,0.00032,2]
[314875479,1708606245908,-406.19605182,0.00032,2]
[314875480,1708606245922,-406.19605182,0.00032,2]
[314875481,1708606245932,-406.19605182,0.00032,2]
[314875482,1708606245942,-406.19605182,0.00032,2]
[314875483,1708606245953,-406.19605182,0.00032,2]
[314875484,1708606245963,-406.19605182,0.00032,2]
[314875485,1708606245973,-406.19605182,0.00032,2]
[314875486,1708606245983,-406.19605182,0.00032,2]
[314875487,1708606246000,-406.19605182,0.00032,2]
[314875488,1708606246010,-406.19605182,0.00032,2]
[314875489,1708606246021,-406.19605182,0.00032,2]
[314875490,1708606246031,-406.19605182,0.00032,2]
[314875491,1708606246041,-158.46349329,0.00032013,3]
[314875492,1708606246051,-156.37,0.00032081,2]
[314875493,1708606246061,-464.19,0.00032092,2]
[314875494,1708606246072,-300.0,0.0003215,2]
[314875495,1708606246084,-3000.0,0.0003215,2]
[314875496,1708606246094,-3000.0,0.0003215,2]
[314875497,1708606246103,-3000.0,0.0003215,2]
[314875498,1708606246113,-3000.0,0.0003215,2]
[314875499,1708606246122,-3000.0,0.0003215,2]
[314875500,1708606246132,-3196.15477557,0.0003215,2]
[314875501,1708606246141,-250.0,0.0003215,2]
[314875502,1708606246151,-655.37026748,0.00032214,5]
[314875503,1708606246161,-464.19,0.00032255,2]
[314875504,1708606246171,-183.04,0.00032276,10]
[314875505,1708606246180,-499.99,0.00032276,2]
[314875506,1708606246190,-152.7,0.00032338,2]
[314875507,1708606246203,-464.19,0.00032418,2]
[314875508,1708606246212,-251.88728841,0.00032424,2]
[314875509,1708606246222,-156.37,0.00032458,2]
[314875510,1708606246231,-464.19,0.00032581,2]
[314875511,1708606246241,-655.37026748,0.00032629,6]
[314875512,1708606246250,-209.0,0.00032668,9]
[314875513,1708606246260,-164.00101498,0.00032676,4]
[314875514,1708606246270,-7081.09839093,0.0003269,2]
[314875515,1708606246279,-1336.06052017,0.00032734,2]
[314875516,1708606246289,-464.19,0.00032744,2]
[314875517,1708606246299,-1460.17249104,0.00032752,2]
[314875518,1708606246308,-797.11627586,0.00032774,2]
[314875519,1708606246318,-890.02085863,0.00032774,2]
[314875520,1708606246328,-500.0,0.00032776,2]
[314875521,1708606246338,-280.3631,0.00032776,2]
[314875522,1708606246348,-5000.0,0.00032776,3]
[314875523,1708606246358,-31652.19520497,0.00032776,3]
[314875524,1708606246679,-406.19605182,0.00032,2]
[314875525,1708606246689,-406.19605182,0.00032,2]
[314875526,1708606246699,-406.19605182,0.00032,2]
[314875527,1708606246709,-156.26248959,0.00032189,2]
[314875528,1708606246719,-4623.892953,0.00032776,3]
[314875529,1708606270481,1000.06488263,0.00023,2]
[314875530,1708606270507,1046.00068663,0.00023,2]
[314875531,1708606270533,1046.00068663,0.00023,2]
[314875532,1708606270558,1046.00068663,0.00023,2]
[314875533,1708606270589,31046.00068663,0.00023,2]
[314875534,1708606270620,318.0,0.00023,2]
[314875535,1708606270648,559.0,0.00023,2]
[314875536,1708606270674,559.0,0.00023,2]
[314875537,1708606270695,438.51068748,0.00023,2]
[314875538,1708606270723,381190.47749324,0.00023,2]
[314875539,1708606270805,21391.64128836,0.0002509,2]
[314875540,1708606272256,2443.74096516,0.000264,2]
[314875541,1708606315179,1098.79919241,0.0002,7]
[314875542,1708606367514,1046.00068663,0.0002509,2]
[314875543,1708606367537,156.00068663,0.0002509,2]
[314875544,1708606367559,156.00068663,0.0002509,2]
[314875545,1708606367581,30211.0060065,0.0002509,2]
[314875546,1708606374746,462.66138383,0.000263,2]
[314875547,1708606411127,155.0,0.0002,2]
[314875548,1708606426881,155.0,0.000263,2]
[314875549,1708606442972,480.78205274,0.00025,2]
[314875550,1708606445894,890.0,0.0002425,2]
[314875551,1708606445917,150.01097118,0.0002425,2]
[314875552,1708606462435,247.4220076,0.00025,2]
[314875553,1708606465175,24084.58711589,0.00025,7]
[314875554,1708606469620,4280.79278708,0.00025,30]
[314875555,1708606477380,155.0,0.0002425,2]
[314875556,1708606495486,35.0,0.0002425,2]
[314875557,1708606495509,120.0,0.0002425,2]
[314875558,1708606509412,70.0,0.0002425,2]
[314875559,1708606509438,85.0,0.0002425,2]
[314875560,1708606527397,105.0,0.0002425,2]
[314875561,1708606527417,108.76270741,0.0002425,2]
[314875563,1708606875667,750.0,0.00025,3]
[314875564,1708606964619,1457.46757825,0.00025,2]
[314875565,1708606988649,1457.46757825,0.00025,2]
[314875566,1708607004561,1457.46757825,0.00025,2]
[314875568,1708607022561,627.59726525,0.00025,2]
[314875570,1708607164494,208.0,0.00025764,2]
[314875571,1708607195231,656.41152217,0.00025764,2]
[314875572,1708607222590,224.59618175,0.00025764,2]
[314875574,1708607352115,-2336.04803761,0.00026542,2]
[314875575,1708607352137,-369.09936239,0.00026543,2]
[314875587,1708607432087,-60.90810813,0.00026543,2]
[314875588,1708607432097,-584.43100386,0.00026544,2]
[314875589,1708607432247,-627.77311569,0.00026544,2]
[314875590,1708607432257,-184.62835549,0.00026545,2]
[314875591,1708607432267,-158.24385809,0.00026664,2]
[314875592,1708607432277,-800.0,0.00027,3]
[314875593,1708607432287,-1374.28571032,0.00027197,2]
[314875594,1708607432297,-426.40560133,0.00027198,2]
[314875595,1708607432306,-1810.39296353,0.00027199,2]
[314875596,1708607432318,-956.32578198,0.00027199,2]
[314875597,1708607432330,-550.0,0.00027199,2]